bitfinex-derivatives/quotes_SOLF0:USTF0_20260208
["timestamp","ask_amount","ask_price","bid_price","bid_amount"]
[1770593183905,65.02741494,86.899,86.793,66.41128557]
[1770593184298,65.02741494,86.899,86.795,66.41128557]
[1770593184299,10.3669,86.874,86.795,66.41128557]
[1770593184502,75.39431494,86.874,86.795,66.41128557]
[1770593184704,65.02741494,86.874,86.795,66.41128557]
[1770593185001,75.39571494,86.862,86.795,66.41128557]
[1770593185307,65.02741494,86.899,86.795,66.41128557]
[1770593185605,10.3681,86.864,86.795,66.41128557]
[1770593186107,65.02741494,86.876,86.795,66.41128557]
[1770593186502,65.02741494,86.876,86.797,66.41128557]
[1770593186706,65.02741494,86.876,86.774,66.41128557]
[1770593187201,65.02741494,86.876,86.74,23.22382413]
[1770593187202,65.02741494,86.841,86.741,66.41128557]
[1770593187600,10.3728,86.825,86.741,76.79398557]
[1770593187903,65.02741494,86.863,86.741,66.41128557]
[1770593188406,23.22382413,86.88,86.741,66.41128557]
[1770593188407,65.02741494,86.841,86.754,10.3811]
[1770593188807,10.3722,86.829,86.757,10.3808]
[1770593189199,65.02741494,86.841,86.757,76.79208557]
[1770593190199,10.3714,86.836,86.757,76.79208557]
[1770593190706,65.02741494,86.841,86.757,66.41128557]
[1770593190906,10.3728,86.825,86.757,66.41128557]
[1770593191801,65.02741494,86.841,86.757,66.41128557]
[1770593192802,75.39981494,86.828,86.757,66.41128557]
[1770593193004,65.02741494,86.828,86.741,66.41128557]
[1770593193310,65.02741494,86.874,86.741,66.41128557]
[1770593193502,10.3722,86.829,86.752,66.41128557]
[1770593193907,65.02741494,86.829,86.752,66.41128557]
[1770593194208,10.3732,86.821,86.752,66.41128557]
[1770593195106,20.725,86.911,86.761,66.41128557]
[1770593195107,65.02741494,86.877,86.761,66.41128557]
[1770593196108,65.02741494,86.877,86.791,66.41128557]
[1770593196502,65.02741494,86.877,86.793,66.41128557]
[1770593197820,65.02741494,86.877,86.799,66.41128557]
[1770593198703,65.02741494,86.9,86.799,66.41128557]
[1770593199207,65.02741494,86.9,86.76,10.272779]
[1770593199208,65.02741494,86.867,86.761,66.41128557]
[1770593200006,10.3689,86.857,86.783,66.41128557]
[1770593200509,10.3689,86.857,86.787,66.41128557]
[1770593200816,65.02741494,86.867,86.787,66.41128557]
[1770593201205,65.02741494,86.867,86.792,66.41128557]
[1770593201403,65.02741494,86.909,86.792,66.41128557]
[1770593201603,10.3663,86.879,86.792,66.41128557]
[1770593202111,10.3663,86.879,86.811,76.78558557]
[1770593202308,10.3643,86.896,86.811,66.41128557]
[1770593202510,65.02741494,86.896,86.823,66.41128557]
[1770593203213,10.3657,86.884,86.823,66.41128557]
[1770593203508,10.367,86.873,86.823,66.41128557]
[1770593203702,65.02741494,86.873,86.799,66.41128557]
[1770593203912,65.02741494,86.873,86.781,66.41128557]
[1770593204714,10.3683,86.862,86.783,10.3776]
[1770593204910,72.3300463,86.861,86.79,9.09409806]
[1770593205110,72.3300463,86.861,86.784,66.41128557]
[1770593205312,72.3300463,86.861,86.72,230.28]
[1770593205313,72.3300463,86.822,86.757,10.3807]
[1770593206310,72.3300463,86.822,86.757,78.62285349]
[1770593206713,10.3704,86.845,86.771,68.24215349]
[1770593208115,72.3300463,86.852,86.771,68.24215349]
[1770593209004,72.3300463,86.849,86.771,68.24215349]
[1770593209209,72.3300463,86.849,86.75,9.09737696]
[1770593209612,72.3300463,86.849,86.75,77.33953045]
[1770593210820,72.3300463,86.849,86.757,10.3807]
[1770593210821,10.372,86.831,86.757,10.3807]
[1770593211521,10.3732,86.821,86.757,78.62285349]
[1770593211716,72.3300463,86.849,86.757,78.62285349]
[1770593212321,10.3731,86.822,86.757,78.62285349]
[1770593212721,10.3705,86.844,86.768,78.62165349]
[1770593213023,72.3300463,86.847,86.771,68.24215349]
[1770593213420,10.3729,86.823,86.771,68.24215349]
[1770593214522,72.3300463,86.869,86.774,68.24215349]
[1770593215111,9.09737696,86.87,86.774,68.24215349]
[1770593215112,72.3300463,86.845,86.774,68.24215349]
[1770593215316,72.3300463,86.868,86.79,9.09737696]
[1770593215514,72.3300463,86.859,86.753,68.24215349]
[1770593215719,72.3300463,86.839,86.753,68.24215349]
[1770593216420,72.3300463,86.808,86.742,10.3825]
[1770593216917,72.3300463,86.808,86.742,78.62465349]
[1770593217122,20.7351,86.869,86.72,68.24215349]
[1770593217123,72.3300463,86.807,86.72,68.24215349]
[1770593217419,72.3300463,86.799,86.72,68.24215349]
[1770593218009,10.3762,86.796,86.732,10.3838]
[1770593218210,72.3300463,86.799,86.732,78.62595349]
[1770593218616,72.3300463,86.799,86.732,68.24215349]
[1770593219516,72.3300463,86.786,86.711,68.24215349]
[1770593219818,72.3300463,86.806,86.711,68.24215349]
[1770593220020,72.3300463,86.806,86.743,68.24215349]
[1770593220522,72.3300463,86.828,86.75,9.09737696]
[1770593220730,72.3300463,86.859,86.751,68.24215349]
[1770593220925,72.3300463,86.859,86.75,9.09737696]
[1770593220926,72.3300463,86.859,86.771,68.24215349]
[1770593221225,72.3300463,86.88,86.797,68.24215349]
[1770593221429,72.3300463,86.88,86.81,9.09737696]
[1770593221614,72.3300463,86.901,86.813,68.24215349]
[1770593221816,72.3300463,86.929,86.831,68.24215349]
[1770593222123,72.3300463,86.952,86.851,78.61165349]
[1770593222315,9.09737696,87.0,86.851,68.24215349]
[1770593222316,72.3300463,86.949,86.851,68.24215349]
[1770593222721,9.09737696,86.95,86.851,68.24215349]
[1770593222722,72.3300463,86.929,86.851,68.24215349]
[1770593223432,82.6904463,86.929,86.851,68.24215349]
[1770593223726,72.3300463,86.929,86.83,77.33953045]
[1770593224323,82.6915463,86.919,86.832,68.24215349]
[1770593224625,72.3300463,86.919,86.832,68.24215349]
[1770593224828,72.3300463,86.919,86.835,68.24215349]
[1770593225815,10.3623,86.912,86.835,68.24215349]
[1770593226021,82.6923463,86.912,86.835,68.24215349]
[1770593226221,72.3300463,86.912,86.835,68.24215349]
[1770593226622,72.3300463,86.909,86.835,68.24215349]
[1770593226925,72.3300463,86.909,86.811,68.24215349]
[1770593227127,72.3300463,86.909,86.758,20.90188357]
[1770593227128,72.3300463,86.939,86.831,68.24215349]
[1770593227319,72.3300463,86.919,86.831,68.24215349]
[1770593228830,72.3300463,86.913,86.831,68.24215349]
[1770593229223,72.3300463,86.913,86.836,68.24215349]
[1770593229421,14.09441471,86.985,86.836,68.24215349]
[1770593229422,72.3300463,86.939,86.836,68.24215349]
[1770593230029,72.3300463,86.92,86.836,68.24215349]
[1770593230230,81.42742326,86.92,86.82,9.09737696]
[1770593230531,81.42742326,86.92,86.821,68.24215349]
[1770593230925,72.3300463,86.908,86.82,9.09737696]
[1770593231230,72.3300463,86.899,86.804,68.24215349]
[1770593231427,9.09737696,86.9,86.804,68.24215349]
[1770593231428,72.3300463,86.877,86.804,68.24215349]
[1770593231619,72.3300463,86.898,86.804,68.24215349]
[1770593232017,72.3300463,86.898,86.82,68.24215349]
[1770593232222,72.3300463,86.898,86.82,77.33953045]
[1770593232619,82.6917463,86.917,86.828,68.24215349]
[1770593233019,82.6933463,86.904,86.828,68.24215349]
[1770593233223,72.3300463,86.904,86.828,68.24215349]
[1770593234125,72.3300463,86.873,86.805,68.24215349]
[1770593235724,10.3658,86.883,86.81,9.09737696]
[1770593235929,10.3658,86.883,86.811,69.73115784]
[1770593236126,10.3664,86.878,86.811,69.73115784]
[1770593236429,10.3664,86.878,86.779,20.90188357]
[1770593236430,68.63533844,86.878,86.801,69.73115784]
[1770593236827,68.63533844,86.866,86.78,9.09737696]
[1770593237429,68.63533844,86.866,86.727,20.90188357]
[1770593237430,68.63533844,86.889,86.801,69.73115784]
[1770593238028,68.63533844,86.889,86.76,29.99926053]
[1770593238029,9.09737696,86.87,86.78,9.09737696]
[1770593238229,68.63533844,86.869,86.78,78.8285348]
[1770593238423,10.3688,86.858,86.783,80.10885784]
[1770593238626,79.00413844,86.858,86.783,69.73115784]
[1770593238824,68.63533844,86.858,86.783,69.73115784]
[1770593239731,68.63533844,86.858,86.783,80.10885784]
[1770593240034,68.63533844,86.858,86.783,69.73115784]
[1770593240536,68.63533844,86.902,86.801,69.73115784]
[1770593240929,10.3645,86.894,86.821,69.73115784]
[1770593241128,68.63533844,86.893,86.821,69.73115784]
[1770593241632,10.3648,86.892,86.821,69.73115784]
[1770593241833,68.63533844,86.893,86.821,69.73115784]
[1770593242544,68.63533844,86.874,86.799,69.73115784]
[1770593242837,68.63533844,86.869,86.78,9.09737696]
[1770593243230,68.63533844,86.857,86.779,69.73115784]
[1770593243630,68.63533844,86.849,86.76,9.09737696]
[1770593243831,79.00653844,86.838,86.761,10.3803]
[1770593244029,68.63533844,86.838,86.761,10.3803]
[1770593244431,68.63533844,86.838,86.761,80.11145784]
[1770593245637,68.63533844,86.85,86.773,69.73115784]
[1770593246632,68.63533844,86.83,86.76,9.09737696]
[1770593246937,9.09737696,86.87,86.761,69.73115784]
[1770593246938,68.63533844,86.869,86.761,69.73115784]
[1770593247937,68.63533844,86.833,86.761,69.73115784]
[1770593248343,68.63533844,86.853,86.761,69.73115784]
[1770593248737,79.00593844,86.843,86.777,10.3784]
[1770593248940,79.00593844,86.843,86.761,69.73115784]
[1770593249640,79.00593844,86.843,86.777,80.10955784]
[1770593249641,68.63533844,86.843,86.777,80.10955784]
[1770593249944,68.63533844,86.863,86.788,80.10825784]
[1770593250637,68.63533844,86.863,86.78,9.09737696]
[1770593250638,10.3669,86.874,86.801,80.10665784]
[1770593251039,20.72,86.932,86.78,9.09737696]
[1770593251040,68.63533844,86.869,86.781,69.73115784]
[1770593251241,10.3706,86.843,86.781,69.73115784]
[1770593251635,9.09737696,86.87,86.76,9.09737696]
[1770593251636,68.63533844,86.832,86.762,10.3802]
[1770593251838,68.63533844,86.832,86.762,69.73115784]
[1770593252247,10.3721,86.831,86.763,10.3801]
[1770593252545,10.3721,86.831,86.763,80.11125784]
[1770593253340,68.63533844,86.832,86.763,80.11125784]
[1770593253647,10.3707,86.842,86.774,69.73115784]
[1770593254544,79.00463844,86.854,86.786,80.10845784]
[1770593255943,79.00463844,86.854,86.76,9.09737696]
[1770593255944,10.368,86.865,86.797,69.73115784]
[1770593256844,79.00363844,86.862,86.798,10.3758]
[1770593257151,68.63533844,86.889,86.797,69.73115784]
[1770593257549,10.3694,86.853,86.797,69.73115784]
[1770593257745,79.00473844,86.853,86.776,69.73115784]
[1770593258445,68.63533844,86.842,86.768,10.3795]
[1770593258751,68.63533844,86.842,86.769,69.73115784]
[1770593258946,10.3701,86.847,86.782,69.73115784]
[1770593259148,68.63533844,86.869,86.782,69.73115784]
[1770593259339,68.63533844,86.849,86.761,69.73115784]
[1770593259545,68.63533844,86.849,86.777,69.73115784]
[1770593260157,68.63533844,86.87,86.797,69.73115784]
[1770593260647,10.375,86.806,86.74,10.65502471]
[1770593260952,10.375,86.806,86.735,69.73115784]
[1770593261251,79.01123844,86.799,86.735,80.11455784]
[1770593262754,79.01123844,86.799,86.735,69.73115784]
[1770593262958,10.3772,86.787,86.735,69.73115784]
[1770593263153,68.63533844,86.799,86.735,69.73115784]
[1770593263749,10.376,86.798,86.735,69.73115784]
[1770593265157,10.3772,86.788,86.735,69.73115784]
[1770593265361,68.63533844,86.799,86.735,69.73115784]
[1770593266156,68.63533844,86.799,86.71,9.09737696]
[1770593266157,71.41536314,86.833,86.751,69.96274426]
[1770593266560,10.3704,86.845,86.778,69.96274426]
[1770593266758,9.09737696,86.86,86.74,34.51]
[1770593266759,71.41536314,86.844,86.747,69.96274426]
[1770593267457,10.3745,86.811,86.747,69.96274426]
[1770593267663,71.41536314,86.819,86.721,69.96274426]
[1770593268159,10.3772,86.788,86.722,80.34774426]
[1770593268361,71.41536314,86.796,86.722,80.34774426]
[1770593269861,71.41536314,86.796,86.732,80.34654426]
[1770593270459,71.41536314,86.796,86.743,10.3825]
[1770593270861,71.41536314,86.796,86.732,69.96274426]
[1770593271060,10.3764,86.794,86.732,69.96274426]
[1770593271256,71.41536314,86.794,86.712,10.67246747]
[1770593271454,71.41536314,86.794,86.711,69.96274426]
[1770593271660,71.41536314,86.781,86.711,69.96274426]
[1770593272462,10.3788,86.775,86.711,69.96274426]
[1770593273269,10.3788,86.775,86.713,10.386]
[1770593273562,10.3788,86.775,86.714,69.96274426]
[1770593274864,10.3788,86.775,86.716,10.3857]
[1770593275162,71.41536314,86.779,86.693,69.96274426]
[1770593275468,71.41536314,86.779,86.68,80.35274426]
[1770593275970,71.41536314,86.779,86.692,69.96274426]
[1770593276562,71.41536314,86.762,86.692,69.96274426]
[1770593277168,10.3828,86.741,86.692,69.96274426]
[1770593277369,81.79816314,86.741,86.672,69.96274426]
[1770593278263,10.3815,86.752,86.672,69.96274426]
[1770593278463,10.3815,86.752,86.684,69.96274426]
[1770593278973,10.3828,86.741,86.684,69.96274426]
[1770593279366,10.3836,86.735,86.664,69.96274426]
[1770593279861,10.3818,86.749,86.667,69.96274426]
[1770593280266,10.3818,86.749,86.67,69.96274426]
[1770593280464,10.383,86.739,86.67,69.96274426]
[1770593280775,71.41536314,86.759,86.67,69.96274426]
[1770593280976,71.41536314,86.719,86.647,69.96274426]
[1770593281572,81.80196314,86.709,86.647,69.96274426]
[1770593281767,71.41536314,86.728,86.647,69.96274426]
[1770593281969,10.3845,86.727,86.651,69.96274426]
[1770593282562,10.384,86.731,86.656,69.96274426]
[1770593282768,71.41536314,86.747,86.661,69.96274426]
[1770593283673,10.3826,86.742,86.67,10.3912]
[1770593283874,10.3826,86.742,86.671,69.96274426]
[1770593284175,71.41536314,86.799,86.701,69.96274426]
[1770593285276,71.41536314,86.767,86.701,69.96274426]
[1770593285477,71.41536314,86.767,86.682,69.96274426]
[1770593285867,10.3832,86.737,86.682,69.96274426]
[1770593286073,71.41536314,86.767,86.682,69.96274426]
[1770593286477,71.41536314,86.767,86.692,69.96274426]
[1770593287781,71.41536314,86.767,86.694,69.96274426]
[1770593288482,10.3814,86.753,86.694,69.96274426]
[1770593288684,71.41536314,86.752,86.694,69.96274426]
[1770593289178,71.41536314,86.752,86.67,9.10760976]
[1770593289179,71.41536314,86.752,86.674,69.96274426]
[1770593290080,10.383,86.739,86.678,69.96274426]
[1770593291684,10.383,86.739,86.682,69.96274426]
[1770593292083,71.41536314,86.752,86.682,69.96274426]
[1770593293384,10.3815,86.751,86.689,69.96274426]
[1770593293582,71.41536314,86.751,86.671,69.96274426]
[1770593294584,10.3851,86.722,86.658,10.3926]
[1770593294885,10.3851,86.722,86.658,80.35534426]
[1770593295487,10.3838,86.732,86.668,71.51292033]
[1770593296588,10.3823,86.745,86.673,70.26025065]
[1770593297298,72.10359008,86.758,86.681,70.26025065]
[1770593297481,9.10760976,86.78,86.681,70.26025065]
[1770593297482,72.10359008,86.779,86.681,70.26025065]
[1770593298085,72.10359008,86.779,86.66,14.23294295]
[1770593298086,72.10359008,86.809,86.711,70.26025065]
[1770593299080,10.3772,86.787,86.722,70.26025065]
[1770593299685,9.10760976,86.79,86.702,70.26025065]
[1770593299881,72.10359008,86.796,86.708,70.26025065]
[1770593300890,10.3764,86.795,86.721,70.26025065]
[1770593301988,72.10359008,86.785,86.721,70.26025065]
[1770593302687,72.10359008,86.772,86.701,70.26025065]
[1770593303096,72.10359008,86.772,86.683,70.26025065]
[1770593303288,72.10359008,86.753,86.683,80.64985065]
[1770593303890,10.3818,86.749,86.683,80.64985065]
[1770593304194,72.10359008,86.779,86.693,70.26025065]
[1770593304396,72.10359008,86.779,86.701,70.26025065]
[1770593304598,10.3784,86.778,86.717,10.3855]
[1770593304900,10.3784,86.778,86.717,80.64575065]
[1770593305504,10.3769,86.79,86.717,80.64575065]
[1770593306001,72.10359008,86.796,86.728,70.26025065]
[1770593306692,72.10359008,86.795,86.728,70.26025065]
[1770593306899,72.10359008,86.789,86.691,10.65681261]
[1770593307095,72.10359008,86.772,86.704,10.3871]
[1770593307598,72.10359008,86.772,86.693,70.26025065]
[1770593307803,10.3807,86.758,86.693,80.64865065]
[1770593308001,82.48429008,86.758,86.693,80.64865065]
[1770593308205,10.3831,86.738,86.672,10.391]
[1770593308504,82.48669008,86.738,86.672,10.391]
[1770593308700,72.10359008,86.738,86.671,70.26025065]
[1770593309593,10.3844,86.728,86.671,70.26025065]
[1770593309794,82.48799008,86.728,86.659,10.3925]
[1770593310699,82.48799008,86.728,86.659,80.65275065]
[1770593311206,82.48799008,86.728,86.659,70.26025065]
[1770593312299,82.48799008,86.728,86.648,80.65415065]
[1770593312809,82.48799008,86.728,86.656,10.3929]
[1770593313006,72.10359008,86.748,86.661,70.26025065]
[1770593313207,72.10359008,86.748,86.675,70.26025065]
[1770593313406,72.10359008,86.748,86.677,80.91706326]
[1770593313604,72.10359008,86.769,86.682,70.26025065]
[1770593313911,72.10359008,86.769,86.691,80.91706326]
[1770593314103,72.10359008,86.769,86.691,70.26025065]
[1770593314306,10.3796,86.768,86.696,10.388]
[1770593314606,72.10359008,86.769,86.697,70.26025065]
[1770593314811,72.10359008,86.79,86.708,70.26025065]
[1770593315015,72.10359008,86.79,86.71,70.26025065]
[1770593315603,72.10359008,86.79,86.71,80.91706326]
[1770593315806,10.3778,86.782,86.712,70.26025065]
[1770593317314,72.10359008,86.781,86.712,70.26025065]
[1770593318507,72.10359008,86.8,86.715,70.26025065]
[1770593319210,81.21119984,86.8,86.715,70.26025065]
[1770593319412,72.10359008,86.8,86.715,70.26025065]
[1770593319713,72.10359008,86.8,86.72,70.26025065]
[1770593320115,10.376,86.798,86.728,70.26025065]
[1770593321419,10.376,86.798,86.731,70.26025065]
[1770593322117,9.10760976,86.82,86.712,70.26025065]
[1770593322118,72.10359008,86.785,86.712,70.26025065]
[1770593323218,72.10359008,86.739,86.662,70.26025065]
[1770593324018,10.3846,86.726,86.662,70.26025065]
[1770593325518,10.386,86.714,86.662,70.26025065]
[1770593326308,10.3872,86.704,86.642,65.98188939]
[1770593326513,67.53493997,86.721,86.642,65.98188939]
[1770593327013,10.3844,86.728,86.654,65.98188939]
[1770593327821,10.3844,86.728,86.66,65.98188939]
[1770593328523,10.3844,86.728,86.662,65.98188939]
[1770593328917,67.53493997,86.74,86.662,65.98188939]
[1770593329719,10.3831,86.738,86.665,65.98188939]
[1770593330115,77.91803997,86.738,86.665,65.98188939]
[1770593330310,10.3844,86.728,86.667,65.98188939]
[1770593330517,67.53493997,86.728,86.641,65.98188939]
[1770593331419,67.53493997,86.728,86.653,65.98188939]
[1770593332527,10.3862,86.712,86.653,65.98188939]
[1770593333424,10.3876,86.701,86.63,76.37788939]
[1770593333630,67.53493997,86.712,86.63,65.98188939]
[1770593333920,67.53493997,86.712,86.641,65.98188939]
[1770593334525,67.53493997,86.73,86.651,65.98188939]
[1770593335127,10.3848,86.724,86.655,65.98188939]
[1770593335335,67.53493997,86.752,86.661,65.98188939]
[1770593338828,77.91633997,86.752,86.68,65.98188939]
[1770593339430,10.3827,86.742,86.68,65.98188939]
[1770593339625,67.53493997,86.752,86.682,65.98188939]
[1770593340528,67.53493997,86.75,86.66,9.12021732]
[1770593340737,76.65515729,86.75,86.661,65.98188939]
[1770593341024,67.53493997,86.738,86.663,10.392]
[1770593341825,67.53493997,86.738,86.674,65.98188939]
[1770593342225,67.53493997,86.738,86.66,9.12021732]
[1770593342531,67.53493997,86.738,86.66,75.10210671]
[1770593343731,67.53493997,86.735,86.666,65.98188939]
[1770593344931,10.384,86.731,86.669,65.98188939]
[1770593346431,77.91893997,86.731,86.669,65.98188939]
[1770593347535,67.53493997,86.731,86.671,65.98188939]
[1770593348035,67.53493997,86.769,86.681,65.98188939]
[1770593348236,77.91613997,86.754,86.681,65.98188939]
[1770593349130,67.53493997,86.741,86.664,65.98188939]
[1770593349529,67.53493997,86.741,86.67,9.12021732]
[1770593349734,67.53493997,86.741,86.671,65.98188939]
[1770593350739,67.53493997,86.739,86.641,14.23294295]
[1770593350942,67.53493997,86.739,86.638,65.98188939]
[1770593351342,67.53493997,86.706,86.638,65.98188939]
[1770593352231,77.92383997,86.69,86.638,65.98188939]
[1770593352432,67.53493997,86.69,86.638,65.98188939]
[1770593354644,67.53493997,86.69,86.64,10.3948]
[1770593355046,10.3877,86.7,86.64,79.76752162]
[1770593355442,10.3877,86.7,86.64,69.37272162]
[1770593355838,71.51702485,86.708,86.64,69.37272162]
[1770593356745,71.51702485,86.708,86.651,75.44494613]
[1770593357334,10.3851,86.722,86.651,75.44494613]
[1770593357534,67.94626745,86.721,86.651,75.44494613]
[1770593358544,67.94626745,86.716,86.651,75.44494613]
[1770593359447,67.94626745,86.715,86.651,75.44494613]
[1770593362447,10.65441557,86.751,86.617,2.00776567]
[1770593362448,67.94626745,86.739,86.661,65.05144613]
[1770593363054,67.94626745,86.736,86.676,10.3904]
[1770593363356,67.94626745,86.736,86.661,65.05144613]
[1770593363558,10.3837,86.734,86.675,10.3906]
[1770593363750,78.32996745,86.734,86.675,10.3906]
[1770593364753,78.32996745,86.734,86.665,75.44324613]
[1770593365052,78.32996745,86.734,86.623,34.62]
[1770593365053,67.94626745,86.723,86.648,65.05144613]
[1770593365943,14.20044198,86.758,86.664,65.05144613]
[1770593365944,67.94626745,86.739,86.664,65.05144613]
[1770593367246,67.94626745,86.757,86.682,65.05144613]
[1770593367863,67.94626745,86.754,86.682,65.05144613]
[1770593368552,67.94626745,86.752,86.665,65.05144613]
[1770593368953,67.94626745,86.752,86.671,79.28438908]
[1770593369158,67.94626745,86.752,86.673,65.05144613]
[1770593369357,67.94626745,86.752,86.694,10.3883]
[1770593369752,67.94626745,86.752,86.694,75.43974613]
[1770593370055,67.94626745,86.785,86.706,65.05144613]
[1770593371259,67.94626745,86.783,86.706,75.43824613]
[1770593372564,67.94626745,86.776,86.706,75.43824613]
[1770593374456,9.12021732,86.8,86.706,75.43824613]
[1770593374457,67.94626745,86.774,86.706,10.3868]
[1770593374651,67.94626745,86.774,86.693,10.3884]
[1770593375860,77.06648477,86.76,86.652,65.05144613]
[1770593376056,67.94626745,86.749,86.652,65.05144613]
[1770593376662,67.94626745,86.729,86.652,65.05144613]
[1770593376862,67.94626745,86.719,86.634,65.05144613]
[1770593378855,9.12021732,86.72,86.636,75.44664613]
[1770593378856,67.94626745,86.712,86.636,75.44664613]
[1770593379251,67.94626745,86.71,86.636,10.3952]
[1770593379962,67.94626745,86.706,86.648,10.3938]
[1770593380958,67.94626745,86.725,86.66,65.05144613]
[1770593381354,67.94626745,86.725,86.641,65.05144613]
[1770593382161,67.94626745,86.723,86.649,10.3937]
[1770593382561,67.94626745,86.723,86.649,75.44514613]
[1770593382762,67.94626745,86.718,86.64,9.12021732]
[1770593383156,67.94626745,86.718,86.631,65.05144613]
[1770593383660,9.12021732,86.71,86.631,65.05144613]
[1770593383865,9.12021732,86.71,86.61,9.12021732]
[1770593383866,67.94626745,86.691,86.61,9.12021732]
[1770593384658,67.94626745,86.673,86.61,9.12021732]
[1770593384858,67.94626745,86.673,86.598,10.3999]
[1770593385163,67.94626745,86.673,86.599,71.06929808]
[1770593385367,67.94626745,86.673,86.604,71.06929808]
[1770593386160,67.94626745,86.673,86.606,71.06929808]
[1770593386359,67.94626745,86.673,86.611,71.06929808]
[1770593386564,70.93455954,86.69,86.611,71.06929808]
[1770593387065,70.93455954,86.69,86.629,71.06929808]
[1770593387965,70.93455954,86.69,86.631,71.06929808]
[1770593388564,70.93455954,86.688,86.631,71.06929808]
[1770593389461,70.93455954,86.688,86.632,81.46499808]
[1770593389769,70.93455954,86.688,86.59,80.20018603]
[1770593390164,70.93455954,86.688,86.59,71.06929808]
[1770593390561,10.3933,86.653,86.59,71.06929808]
[1770593390757,81.32785954,86.653,86.59,71.06929808]
[1770593391757,70.93455954,86.671,86.592,71.06929808]
[1770593392064,70.93455954,86.671,86.601,71.06929808]
[1770593392858,70.93455954,86.671,86.603,71.06929808]
[1770593393256,70.93455954,86.667,86.601,71.06929808]
[1770593394164,70.93455954,86.654,86.59,9.13088795]
[1770593394468,70.93455954,86.654,86.589,10.4009]
[1770593394469,70.93455954,86.654,86.571,71.06929808]
[1770593394670,70.93455954,86.649,86.582,10.4017]
[1770593394857,70.93455954,86.649,86.582,71.06929808]
[1770593395364,70.93455954,86.689,86.582,71.06929808]
[1770593395760,70.93455954,86.671,86.604,81.46839808]
[1770593396171,70.93455954,86.671,86.604,71.06929808]
[1770593397368,70.93455954,86.689,86.625,81.46589808]
[1770593397567,70.93455954,86.709,86.625,71.06929808]
[1770593398271,70.93455954,86.692,86.625,71.06929808]
[1770593399665,70.93455954,86.69,86.618,10.3974]
[1770593399864,80.06544749,86.69,86.576,71.06929808]
[1770593400062,10.3954,86.636,86.567,10.4035]
[1770593400268,70.93455954,86.635,86.538,71.06929808]
[1770593400467,9.13088795,86.62,86.538,71.06929808]
[1770593400672,70.93455954,86.599,86.527,2.00962657]
[1770593400868,70.93455954,86.599,86.5,9.13088795]
[1770593400869,70.93455954,86.579,86.495,71.06929808]
[1770593401270,70.93455954,86.575,86.475,71.06929808]
[1770593401573,70.93455954,86.575,86.491,71.06929808]
[1770593401771,70.93455954,86.571,86.491,71.06929808]
[1770593402164,14.20044198,86.621,86.47,9.13088795]
[1770593402165,70.93455954,86.59,86.511,71.06929808]
[1770593402369,70.93455954,86.59,86.516,71.06929808]
[1770593402568,70.93455954,86.609,86.53,9.13088795]
[1770593402767,70.93455954,86.609,86.531,71.06929808]
[1770593402973,70.93455954,86.609,86.533,71.06929808]
[1770593403170,70.93455954,86.609,86.533,66.46929808]
[1770593403577,70.93455954,86.606,86.533,66.46929808]
[1770593404676,70.93455954,86.606,86.54,9.13088795]
[1770593404876,70.93455954,86.606,86.52,9.13088795]
[1770593405083,9.13088795,86.63,86.52,9.13088795]
[1770593405084,70.93455954,86.603,86.52,9.13088795]
[1770593405482,70.93455954,86.623,86.52,80.20018603]
[1770593405685,70.93455954,86.623,86.543,71.06929808]
[1770593405980,70.93455954,86.649,86.561,71.06929808]
[1770593406284,81.32835954,86.649,86.561,71.06929808]
[1770593406476,70.93455954,86.649,86.561,71.06929808]
[1770593406676,70.93455954,86.649,86.56,9.13088795]
[1770593406677,70.93455954,86.649,86.563,71.06929808]
[1770593407578,70.93455954,86.649,86.571,71.06929808]
[1770593408286,70.93455954,86.672,86.591,71.06929808]
[1770593408486,70.93455954,86.669,86.591,71.06929808]
[1770593408781,161.5794,86.704,86.52,9.13088795]
[1770593408782,70.93455954,86.689,86.611,71.06929808]
[1770593408977,70.93455954,86.709,86.631,71.06929808]
[1770593409683,9.13088795,86.73,86.631,71.06929808]
[1770593409884,70.93455954,86.709,86.633,71.06929808]
[1770593411287,70.93455954,86.689,86.611,71.06929808]
[1770593411880,80.06544749,86.71,86.611,71.06929808]
[1770593412287,70.93455954,86.689,86.59,80.20018603]
[1770593412590,70.93455954,86.685,86.59,80.20018603]
[1770593413183,70.93455954,86.678,86.59,80.20018603]
[1770593413490,70.93455954,86.678,86.592,71.06929808]
[1770593414378,70.93455954,86.678,86.538,230.84]
[1770593414379,70.93455954,86.675,86.559,71.06929808]
[1770593414583,9.13088795,86.69,86.559,71.06929808]
[1770593414584,70.93455954,86.649,86.559,71.06929808]
[1770593414785,70.93455954,86.626,86.559,71.06929808]
[1770593415384,64.89510354,86.622,86.52,9.13088795]
[1770593415585,64.89510354,86.622,86.537,66.31347494]
[1770593416584,66.40299793,86.62,86.537,66.31347494]
[1770593416782,66.40299793,86.609,86.516,65.92054477]
[1770593416983,66.40299793,86.607,86.516,65.92054477]